fUSD/lending_fUSD_20240409
["ID","MTS","AMOUNT","RATE_DAILY","PERIOD"]
[321944225,1712645441687,-500.0,0.00020821,2]
[321944226,1712645441697,-502.48575886,0.00020821,2]
[321944227,1712645441706,-500.0,0.00020821,2]
[321944228,1712645441715,-500.0,0.00020821,2]
[321944229,1712645441724,-500.0,0.00020821,2]
[321944230,1712645441733,-792.43,0.00020821,2]
[321944231,1712645441742,-500.0,0.00020821,2]
[321944232,1712645441752,-500.0,0.00020821,2]
[321944233,1712645441762,-500.0,0.00020821,2]
[321944234,1712645441771,-500.0,0.00020821,2]
[321944235,1712645441780,-293.33760653,0.00020821,2]
[321944236,1712645441790,-500.0,0.00020821,2]
[321944237,1712645441801,-500.0,0.00020821,2]
[321944238,1712645441810,-500.0,0.00020821,2]
[321944239,1712645441819,-500.0,0.00020821,2]
[321944240,1712645441828,-500.0,0.00020821,2]
[321944241,1712645441838,-500.0,0.00020821,2]
[321944242,1712645441851,-500.0,0.00020821,2]
[321944243,1712645441860,-500.0,0.00020821,2]
[321944244,1712645441869,-500.0,0.00020821,2]
[321944245,1712645441878,-646.7,0.00020821,2]
[321944246,1712645441887,-554.13,0.00020821,2]
[321944247,1712645441897,-500.0,0.00020821,2]
[321944248,1712645441906,-500.0,0.00020821,2]
[321944249,1712645441915,-500.0,0.00020821,2]
[321944250,1712645441925,-500.0,0.00020821,2]
[321944251,1712645441935,-503.83,0.00020821,2]
[321944252,1712645441944,-634.85,0.00020821,2]
[321944253,1712645441953,-500.0,0.00020821,2]
[321944254,1712645441963,-500.0,0.00020821,2]
[321944255,1712645441972,-505.85095193,0.00020821,2]
[321944256,1712645441981,-521.84,0.00020821,2]
[321944257,1712645441991,-500.0,0.00020821,2]
[321944258,1712645442000,-500.0,0.00020821,2]
[321944259,1712645442009,-1446.1,0.00020821,2]
[321944260,1712645442019,-500.0,0.00020821,2]
[321944261,1712645442028,-500.0,0.00020821,2]
[321944262,1712645442038,-500.0,0.00020821,2]
[321944263,1712645442047,-500.0,0.00020821,2]
[321944264,1712645442057,-500.0,0.00020821,2]
[321944265,1712645442066,-500.0,0.00020821,2]
[321944266,1712645442076,-500.0,0.00020821,2]
[321944267,1712645442085,-500.0,0.00020821,2]
[321944268,1712645442100,-500.0,0.00020821,2]
[321944269,1712645442110,-500.0,0.00020821,2]
[321944270,1712645442120,-505.31321093,0.00020821,2]
[321944271,1712645442129,-500.0,0.00020821,2]
[321944272,1712645442138,-500.0,0.00020821,2]
[321944273,1712645442148,-500.0,0.00020821,2]
[321944274,1712645442158,-500.0,0.00020821,2]
[321944275,1712645442167,-543.22833135,0.00020821,2]
[321944276,1712645442176,-502.77336872,0.00020821,2]
[321944277,1712645442185,-500.0,0.00020821,2]
[321944278,1712645442195,-500.0,0.00020821,2]
[321944279,1712645442204,-500.0,0.00020821,2]
[321944280,1712645442213,-500.0,0.00020821,2]
[321944281,1712645442223,-500.0,0.00020821,2]
[321944282,1712645442233,-255.65493281,0.00020821,2]
[321944283,1712645442243,-500.0,0.00020821,2]
[321944284,1712645442252,-502.67834581,0.00020821,2]
[321944285,1712645442262,-500.0,0.00020821,2]
[321944286,1712645442272,-500.0,0.00020821,2]
[321944287,1712645442282,-503.33235994,0.00020821,2]
[321944288,1712645442292,-683.99,0.00020821,2]
[321944289,1712645442302,-510.33038231,0.00020821,2]
[321944290,1712645442311,-500.0,0.00020821,2]
[321944291,1712645442321,-502.81632007,0.00020821,2]
[321944292,1712645442331,-500.0,0.00020821,2]
[321944293,1712645442341,-503.40016986,0.00020821,2]
[321944294,1712645442351,-993.84,0.00020821,2]
[321944295,1712645442360,-500.0,0.00020821,2]
[321944296,1712645442369,-501.60180161,0.00020821,2]
[321944297,1712645442379,-553.61754553,0.00020821,2]
[321944298,1712645442389,-208.59437229,0.00020821,2]
[321944299,1712645442398,-500.0,0.00020821,2]
[321944300,1712645442407,-500.0,0.00020821,2]
[321944301,1712645442417,-500.0,0.00020821,2]
[321944302,1712645442426,-496.51677854,0.00020821,2]
[321944303,1712645442437,-500.0,0.00020821,2]
[321944304,1712645442447,-500.0,0.00020821,2]
[321944305,1712645442457,-1289.82,0.00020821,2]
[321944306,1712645442469,-502.76129567,0.00020821,2]
[321944307,1712645442480,-500.0,0.00020821,2]
[321944308,1712645442489,-500.0,0.00020821,2]
[321944309,1712645442498,-500.0,0.00020821,2]
[321944310,1712645442509,-519.12353443,0.00020821,2]
[321944311,1712645442519,-520.15007725,0.00020821,2]
[321944312,1712645442530,-500.0,0.00020821,2]
[321944313,1712645442540,-500.0,0.00020821,2]
[321944314,1712645442549,-1020.21,0.00020821,2]
[321944315,1712645442558,-737.2,0.00020821,2]
[321944316,1712645442568,-500.0,0.00020821,2]
[321944317,1712645442577,-501.87611416,0.00020821,2]
[321944318,1712645442587,-696.44,0.00020821,2]
[321944319,1712645442598,-1863.27,0.00020821,2]
[321944320,1712645442608,-500.0,0.00020821,2]
[321944321,1712645442618,-500.0,0.00020821,2]
[321944322,1712645442628,-1664.49,0.00020821,2]
[321944323,1712645442637,-500.0,0.00020821,2]
[321944324,1712645442646,-500.0,0.00020821,2]
[321944325,1712645442655,-503.02377822,0.00020821,2]
[321944326,1712645442664,-510.30898835,0.00020821,2]
[321944327,1712645442674,-502.77388539,0.00020821,2]
[321944328,1712645442683,-500.0,0.00020821,2]
[321944329,1712645442693,-500.0,0.00020821,2]
[321944330,1712645442703,-500.0,0.00020821,2]
[321944331,1712645442712,-359.75050188,0.00020821,2]
[321944332,1712645442721,-720.91,0.00020821,2]
[321944333,1712645442730,-500.0,0.00020821,2]
[321944334,1712645442740,-500.0,0.00020821,2]
[321944335,1712645442749,-708.46,0.00020821,2]
[321944336,1712645442758,-568.37400728,0.00020821,2]
[321944337,1712645442767,-500.0,0.00020821,2]
[321944338,1712645442777,-1999.97,0.00020821,2]
[321944339,1712645442786,-500.0,0.00020821,2]
[321944340,1712645442796,-2317.24,0.00020821,2]
[321944341,1712645442806,-500.0,0.00020821,2]
[321944342,1712645442815,-500.0,0.00020821,2]
[321944343,1712645442824,-500.0,0.00020821,2]
[321944344,1712645442834,-1307.65,0.00020821,2]
[321944345,1712645442846,-1388.28,0.00020821,2]
[321944346,1712645442855,-543.35345665,0.00020821,2]
[321944347,1712645442864,-500.0,0.00020821,2]
[321944348,1712645442874,-500.0,0.00020821,2]
[321944349,1712645442883,-500.0,0.00020821,2]
[321944350,1712645442892,-500.0,0.00020821,2]
[321944351,1712645442901,-503.32726695,0.00020821,2]
[321944352,1712645442911,-927.15,0.00020821,2]
[321944353,1712645442920,-500.0,0.00020821,2]
[321944354,1712645442929,-500.0,0.00020821,2]
[321944355,1712645442938,-583.03,0.00020821,2]
[321944356,1712645442947,-500.0,0.00020821,2]
[321944357,1712645442957,-535.97350084,0.00020821,2]
[321944358,1712645442966,-500.0,0.00020821,2]
[321944359,1712645442975,-1895.89,0.00020821,2]
[321944360,1712645442985,-509.87279519,0.00020821,2]
[321944361,1712645442994,-500.0,0.00020821,2]
[321944363,1712645443004,-1561.54,0.00020821,2]
[321944365,1712645443013,-509.63775545,0.00020821,2]
[321944366,1712645443022,-1869.89,0.00020821,2]
[321944367,1712645443032,-551.6,0.00020821,2]
[321944369,1712645443041,-512.68198055,0.00020821,2]
[321944370,1712645443050,-500.0,0.00020821,2]
[321944371,1712645443059,-500.0,0.00020821,2]
[321944372,1712645443069,-1701.9,0.00020821,2]
[321944373,1712645443078,-500.0,0.00020821,2]
[321944374,1712645443087,-500.0,0.00020821,2]
[321944375,1712645443099,-1080.83,0.00020821,2]
[321944376,1712645443109,-500.0,0.00020821,2]
[321944377,1712645443118,-500.0,0.00020821,2]
[321944378,1712645443128,-500.0,0.00020821,2]
[321944379,1712645443137,-500.0,0.00020821,2]
[321944380,1712645443146,-500.0,0.00020821,2]
[321944381,1712645443155,-1229.21,0.00020821,2]
[321944382,1712645443165,-500.0,0.00020821,2]
[321944384,1712645443174,-500.0,0.00020821,2]
[321944386,1712645443183,-500.0,0.00020821,2]
[321944387,1712645443193,-971.72,0.00020821,2]
[321944389,1712645443202,-500.0,0.00020821,2]
[321944391,1712645443211,-1633.97,0.00020821,2]
[321944392,1712645443220,-500.0,0.00020821,2]
[321944393,1712645443230,-500.0,0.00020821,2]
[321944394,1712645443239,-637.47,0.00020821,2]
[321944395,1712645443249,-500.0,0.00020821,2]
[321944396,1712645443259,-741.16,0.00020821,2]
[321944397,1712645443269,-500.0,0.00020821,2]
[321944398,1712645443279,-500.0,0.00020821,2]
[321944399,1712645443288,-1406.82,0.00020821,2]
[321944400,1712645443297,-651.7,0.00020821,2]
[321944401,1712645443307,-569.52294952,0.00020821,2]
[321944402,1712645443316,-939.61,0.00020821,2]
[321944403,1712645443325,-500.0,0.00020821,2]
[321944404,1712645443334,-500.0,0.00020821,2]
[321944405,1712645443346,-500.0,0.00020821,2]
[321944406,1712645443355,-500.0,0.00020821,2]
[321944407,1712645443364,-500.0,0.00020821,2]
[321944408,1712645443373,-1206.4,0.00020821,2]
[321944409,1712645443382,-500.0,0.00020821,2]
[321944410,1712645443391,-2799.67,0.00020821,2]
[321944411,1712645443400,-500.0,0.00020821,2]
[321944412,1712645443410,-1871.94,0.00020821,2]
[321944413,1712645443419,-500.0,0.00020821,2]
[321944414,1712645443429,-500.0,0.00020821,2]
[321944415,1712645443438,-540.05,0.00020821,2]
[321944416,1712645443447,-500.0,0.00020821,2]
[321944417,1712645443457,-500.0,0.00020821,2]
[321944418,1712645443466,-500.0,0.00020821,2]
[321944419,1712645443476,-500.0,0.00020821,2]
[321944420,1712645443486,-500.0,0.00020821,2]
[321944421,1712645443495,-991.69,0.00020821,2]
[321944422,1712645443504,-500.0,0.00020821,2]
[321944423,1712645443514,-500.0,0.00020821,2]
[321944424,1712645443523,-913.04,0.00020821,2]
[321944425,1712645443677,-500.0,0.00020821,2]
[321944426,1712645443687,-560.57,0.00020821,2]
[321944427,1712645443697,-508.71957241,0.00020821,2]
[321944428,1712645443706,-500.0,0.00020821,2]
[321944429,1712645443715,-504.69632713,0.00020821,2]
[321944430,1712645443724,-1921.56,0.00020821,2]
[321944431,1712645443734,-506.25402525,0.00020821,2]
[321944432,1712645443743,-500.0,0.00020821,2]
[321944433,1712645443754,-500.0,0.00020821,2]
[321944434,1712645443763,-500.0,0.00020821,2]
[321944435,1712645443773,-500.0,0.00020821,2]
[321944436,1712645443782,-505.90858159,0.00020821,2]
[321944437,1712645443792,-520.97227162,0.00020821,2]
[321944438,1712645443801,-517.96814965,0.00020821,2]
[321944439,1712645443811,-1894.7,0.00020821,2]
[321944440,1712645443820,-500.0,0.00020821,2]
[321944441,1712645443830,-752.9,0.00020821,2]
[321944442,1712645443839,-752.9,0.00020821,2]
[321944443,1712645443849,-752.9,0.00020821,2]
[321944444,1712645443858,-500.0,0.00020821,2]
[321944445,1712645443867,-752.9,0.00020821,2]
[321944446,1712645443876,-752.9,0.00020821,2]
[321944447,1712645443886,-500.0,0.00020821,2]
[321944448,1712645443895,-752.9,0.00020821,2]
[321944449,1712645443905,-442.39333655,0.00020821,2]
[321944450,1712645443914,-500.0,0.00020821,2]
[321944451,1712645443923,-538.01463337,0.00020821,2]
[321944452,1712645443933,-500.0,0.00020821,2]
[321944453,1712645443942,-500.0,0.00020821,2]
[321944454,1712645443951,-500.0,0.00020821,2]
[321944456,1712645443961,-1928.8,0.00020821,2]
[321944458,1712645443970,-500.0,0.00020821,2]
[321944460,1712645443979,-503.54828316,0.00020821,2]
[321944461,1712645443988,-2579.95,0.00020821,2]
[321944462,1712645443997,-500.0,0.00020821,2]
[321944463,1712645444006,-1039.93,0.00020821,2]
[321944464,1712645444015,-500.0,0.00020821,2]
[321944465,1712645444024,-500.0,0.00020821,2]
[321944466,1712645444033,-500.0,0.00020821,2]
[321944467,1712645444042,-500.0,0.00020821,2]
[321944468,1712645444051,-500.0,0.00020821,2]
[321944469,1712645444060,-500.0,0.00020821,2]
[321944470,1712645444069,-1106.81,0.00020821,2]
[321944471,1712645444078,-500.0,0.00020821,2]
[321944472,1712645444087,-1474.65,0.00020821,2]
[321944473,1712645444098,-2345.88,0.00020821,2]
[321944475,1712645444107,-500.0,0.00020821,2]
[321944477,1712645444117,-500.0,0.00020821,2]
[321944479,1712645444126,-507.02106742,0.00020821,2]
[321944481,1712645444136,-500.0,0.00020821,2]
[321944483,1712645444145,-317.25063976,0.00020821,2]
[321944485,1712645444154,-818.05,0.00020821,2]
[321944487,1712645444164,-975.41,0.00020821,2]
[321944489,1712645444173,-1550.55,0.00020821,2]
[321944491,1712645444182,-500.0,0.00020821,2]
[321944493,1712645444191,-500.0,0.00020821,2]
[321944495,1712645444200,-515.19210534,0.00020821,2]
[321944497,1712645444209,-500.0,0.00020821,2]
[321944499,1712645444218,-518.3092483,0.00020821,2]
[321944501,1712645444228,-500.0,0.00020821,2]
[321944503,1712645444238,-500.0,0.00020821,2]
[321944505,1712645444247,-500.0,0.00020821,2]
[321944507,1712645444256,-500.0,0.00020821,2]
[321944509,1712645444267,-2120.87,0.00020821,2]
[321944511,1712645444276,-500.0,0.00020821,2]
[321944513,1712645444285,-583.44,0.00020821,2]
[321944515,1712645444294,-512.84590398,0.00020821,2]
[321944517,1712645444304,-500.0,0.00020821,2]
[321944519,1712645444313,-1443.7,0.00020821,2]
[321944521,1712645444322,-500.0,0.00020821,2]
[321944523,1712645444331,-500.0,0.00020821,2]
[321944525,1712645444343,-500.0,0.00020821,2]
[321944527,1712645444352,-500.0,0.00020821,2]
[321944529,1712645444363,-500.0,0.00020821,2]
[321944531,1712645444372,-500.0,0.00020821,2]
[321944533,1712645444381,-1498.76,0.00020821,2]
[321944535,1712645444390,-500.0,0.00020821,2]
[321944537,1712645444399,-500.0,0.00020821,2]
[321944539,1712645444409,-500.0,0.00020821,2]
[321944541,1712645444418,-1635.36,0.00020821,2]
[321944543,1712645444428,-500.0,0.00020821,2]
[321944545,1712645444437,-500.0,0.00020821,2]
[321944547,1712645444446,-1297.02,0.00020821,2]
[321944549,1712645444455,-513.50350654,0.00020821,2]
[321944550,1712645444464,-952.15,0.00020821,2]
[321944551,1712645444475,-500.0,0.00020821,2]
[321944552,1712645444485,-500.0,0.00020821,2]
[321944553,1712645444494,-1432.67,0.00020821,2]
[321944554,1712645444503,-539.71,0.00020821,2]
[321944555,1712645444512,-500.0,0.00020821,2]
[321944556,1712645444521,-500.0,0.00020821,2]
[321944557,1712645444531,-500.0,0.00020821,2]
[321944558,1712645444540,-500.0,0.00020821,2]
[321944559,1712645444549,-500.0,0.00020821,2]
[321944560,1712645444558,-1357.86,0.00020821,2]
[321944561,1712645444569,-500.0,0.00020821,2]
[321944562,1712645444578,-500.0,0.00020821,2]
[321944563,1712645444587,-597.64690051,0.00020821,2]
[321944564,1712645444599,-555.91,0.00020821,2]
[321944565,1712645444608,-2082.98,0.00020821,2]
[321944566,1712645444617,-500.0,0.00020821,2]
[321944567,1712645444627,-500.0,0.00020821,2]
[321944568,1712645444636,-500.0,0.00020821,2]
[321944569,1712645444645,-500.0,0.00020821,2]
[321944570,1712645444654,-578.04,0.00020821,2]
[321944571,1712645444664,-500.0,0.00020821,2]
[321944572,1712645444673,-500.0,0.00020821,2]
[321944573,1712645444682,-1511.93,0.00020821,2]
[321944574,1712645444691,-500.0,0.00020821,2]
[321944575,1712645444701,-500.0,0.00020821,2]
[321944576,1712645444710,-500.0,0.00020821,2]
[321944577,1712645444719,-2766.07,0.00020821,2]
[321944578,1712645444728,-500.0,0.00020821,2]
[321944579,1712645444737,-891.99,0.00020821,2]
[321944580,1712645444747,-500.0,0.00020821,2]
[321944581,1712645444756,-582.75,0.00020821,2]
[321944582,1712645444765,-534.90736733,0.00020821,2]
[321944583,1712645444775,-500.0,0.00020821,2]
[321944584,1712645444784,-500.0,0.00020821,2]
[321944585,1712645444793,-500.0,0.00020821,2]
[321944586,1712645444802,-1448.24,0.00020821,2]
[321944587,1712645444811,-500.0,0.00020821,2]
[321944588,1712645444821,-522.09349027,0.00020821,2]
[321944589,1712645444830,-500.0,0.00020821,2]
[321944590,1712645444839,-661.52,0.00020821,2]
[321944591,1712645444851,-737.13,0.00020821,2]
[321944592,1712645444861,-500.0,0.00020821,2]
[321944593,1712645444870,-4165.06,0.00020821,2]
[321944594,1712645444879,-500.0,0.00020821,2]
[321944595,1712645444888,-600.43,0.00020821,2]
[321944596,1712645444898,-2640.53,0.00020821,2]
[321944597,1712645444907,-500.0,0.00020821,2]
[321944598,1712645444917,-1652.68,0.00020821,2]
[321944599,1712645444926,-500.0,0.00020821,2]
[321944600,1712645444935,-745.39,0.00020821,2]
[321944601,1712645444945,-500.0,0.00020821,2]
[321944602,1712645444954,-1727.35,0.00020821,2]
[321944603,1712645444963,-1344.87,0.00020821,2]
[321944604,1712645444973,-2391.88,0.00020821,2]
[321944605,1712645444982,-500.0,0.00020821,2]
[321944606,1712645444991,-500.0,0.00020821,2]
[321944607,1712645445001,-516.05538374,0.00020821,2]
[321944608,1712645445010,-500.0,0.00020821,2]
[321944609,1712645445020,-600.0,0.00020821,2]
[321944610,1712645445029,-500.0,0.00020821,2]
[321944611,1712645445038,-1450.04,0.00020821,2]
[321944612,1712645445050,-500.0,0.00020821,2]
[321944613,1712645445059,-1210.9,0.00020821,2]
[321944614,1712645445068,-500.0,0.00020821,2]
[321944615,1712645445078,-500.0,0.00020821,2]
[321944616,1712645445087,-785.2,0.00020821,2]
[321944617,1712645445098,-500.0,0.00020821,2]
[321944618,1712645445108,-500.0,0.00020821,2]
[321944619,1712645445117,-500.0,0.00020821,2]
[321944620,1712645445125,-500.0,0.00020821,2]
[321944621,1712645445135,-500.0,0.00020821,2]
[321944622,1712645445144,-500.0,0.00020821,2]
[321944623,1712645445153,-556.31,0.00020821,2]
[321944624,1712645445162,-4597.81,0.00020821,2]
[321944625,1712645445171,-899.16,0.00020821,2]
[321944626,1712645445180,-1491.78,0.00020821,2]
[321944627,1712645445189,-698.2,0.00020821,2]
[321944628,1712645445198,-500.0,0.00020821,2]
[321944629,1712645445207,-765.68,0.00020821,2]
[321944630,1712645445216,-666.74,0.00020821,2]
[321944631,1712645445225,-500.0,0.00020821,2]
[321944632,1712645445234,-524.46,0.00020821,2]
[321944633,1712645445243,-1835.78,0.00020821,2]
[321944634,1712645445252,-500.0,0.00020821,2]
[321944635,1712645445262,-1117.97,0.00020821,2]
[321944636,1712645445271,-2133.45,0.00020821,2]
[321944637,1712645445280,-500.0,0.00020821,2]
[321944638,1712645445290,-500.0,0.00020821,2]
[321944639,1712645445299,-2000.0,0.00020821,2]
[321944640,1712645445308,-713.49,0.00020821,2]
[321944641,1712645445317,-500.0,0.00020821,2]
[321944642,1712645445326,-500.0,0.00020821,2]
[321944643,1712645445335,-500.0,0.00020821,2]
[321944644,1712645445346,-1167.98,0.00020821,2]
[321944645,1712645445355,-500.0,0.00020821,2]
[321944646,1712645445364,-200.0,0.00020821,2]
[321944647,1712645445373,-1423.56,0.00020821,2]
[321944648,1712645445382,-500.0,0.00020821,2]
[321944649,1712645445391,-500.0,0.00020821,2]
[321944650,1712645445401,-500.0,0.00020821,2]
[321944651,1712645445410,-1415.47,0.00020821,2]
[321944652,1712645445419,-500.0,0.00020821,2]
[321944653,1712645445428,-528.8397691,0.00020821,2]
[321944654,1712645445437,-598.84,0.00020821,2]
[321944655,1712645445446,-500.0,0.00020821,2]
[321944656,1712645445455,-1023.36,0.00020821,2]
[321944657,1712645445465,-693.05,0.00020821,2]
[321944658,1712645445477,-676.19,0.00020821,2]
[321944659,1712645445487,-500.0,0.00020821,2]
[321944660,1712645445497,-1491.97,0.00020821,2]
[321944661,1712645445506,-500.0,0.00020821,2]
[321944662,1712645445515,-500.0,0.00020821,2]
[321944663,1712645445525,-1275.37,0.00020821,2]
[321944664,1712645445534,-500.0,0.00020821,2]
[321944665,1712645445543,-614.85960797,0.00020821,2]
[321944666,1712645445553,-605.2,0.00020821,2]
[321944667,1712645445563,-1457.58,0.00020821,2]
[321944668,1712645445573,-500.0,0.00020821,2]
[321944669,1712645445582,-1266.87,0.00020821,2]
[321944670,1712645445591,-1134.76,0.00020821,2]
[321944671,1712645445602,-1779.71,0.00020821,2]
[321944672,1712645445611,-500.0,0.00020821,2]
[321944673,1712645445620,-500.0,0.00020821,2]
[321944674,1712645445630,-500.0,0.00020821,2]
[321944675,1712645445639,-1294.12,0.00020821,2]
[321944676,1712645445648,-500.0,0.00020821,2]
[321944677,1712645445657,-500.0,0.00020821,2]
[321944678,1712645445666,-1173.46,0.00020821,2]
[321944679,1712645445675,-569.4,0.00020821,2]
[321944680,1712645445684,-500.0,0.00020821,2]
[321944681,1712645445693,-2550.91,0.00020821,2]
[321944682,1712645445703,-820.1,0.00020821,2]
[321944683,1712645445712,-500.0,0.00020821,2]
[321944684,1712645445721,-500.0,0.00020821,2]
[321944685,1712645445730,-519.54,0.00020821,2]
[321944686,1712645445739,-500.0,0.00020821,2]
[321944687,1712645445749,-500.0,0.00020821,2]
[321944688,1712645445759,-506.6,0.00020821,2]
[321944689,1712645445768,-500.0,0.00020821,2]
[321944690,1712645445777,-1557.82,0.00020821,2]
[321944691,1712645445787,-1075.18,0.00020821,2]
[321944698,1712645446088,-503.77,0.00020821,2]
[321944702,1712645446116,-500.0,0.00020821,2]
[321944703,1712645446125,-2778.68,0.00020821,2]
[321944704,1712645446135,-500.0,0.00020821,2]
[321944705,1712645446144,-1731.12,0.00020821,2]
[321944706,1712645446154,-500.0,0.00020821,2]
[321944707,1712645446163,-628.32,0.00020821,2]
[321944708,1712645446173,-500.0,0.00020821,2]
[321944709,1712645446183,-1290.22,0.00020821,2]
[321944710,1712645446192,-500.0,0.00020821,2]
[321944711,1712645446202,-503.49227843,0.00020821,2]
[321944712,1712645446211,-758.22,0.00020821,2]
[321944713,1712645446220,-500.0,0.00020821,2]
[321944714,1712645446229,-1177.16,0.00020821,2]
[321944715,1712645446238,-1190.49,0.00020821,2]
[321944716,1712645446248,-534.76,0.00020821,2]
[321944717,1712645446257,-500.0,0.00020821,2]
[321944718,1712645446268,-564.64,0.00020821,2]
[321944719,1712645446277,-500.0,0.00020821,2]
[321944720,1712645446286,-908.54,0.00020821,2]
[321944721,1712645446296,-500.0,0.00020821,2]
[321944722,1712645446305,-720.69,0.00020821,2]
[321944723,1712645446314,-2576.16,0.00020821,2]
[321944724,1712645446323,-500.0,0.00020821,2]
[321944725,1712645446333,-572.99,0.00020821,2]
[321944726,1712645446342,-500.0,0.00020821,2]
[321944727,1712645446353,-500.0,0.00020821,2]
[321944728,1712645446363,-1488.04,0.00020821,2]
[321944729,1712645446372,-2176.34,0.00020821,2]
[321944730,1712645446381,-500.0,0.00020821,2]
[321944731,1712645446391,-500.0,0.00020821,2]
[321944732,1712645446400,-507.60337668,0.00020821,2]
[321944733,1712645446410,-500.0,0.00020821,2]
[321944734,1712645446419,-1408.3,0.00020821,2]
[321944735,1712645446428,-1523.07,0.00020821,2]
[321944736,1712645446437,-500.0,0.00020821,2]
[321944737,1712645446446,-500.0,0.00020821,2]
[321944738,1712645446456,-500.0,0.00020821,2]
[321944739,1712645446467,-500.0,0.00020821,2]
[321944740,1712645446477,-500.0,0.00020821,2]
[321944741,1712645446486,-508.31478515,0.00020821,2]
[321944742,1712645446495,-560.99,0.00020821,2]
[321944743,1712645446505,-500.0,0.00020821,2]
[321944744,1712645446515,-3223.61,0.00020821,2]
[321944745,1712645446525,-501.69753348,0.00020821,2]
[321944746,1712645446535,-500.0,0.00020821,2]
[321944747,1712645446544,-500.0,0.00020821,2]
[321944748,1712645446555,-631.34,0.00020821,2]
[321944749,1712645446565,-505.03048117,0.00020821,2]
[321944750,1712645446575,-794.86,0.00020821,2]
[321944751,1712645446584,-4546.31,0.00020821,2]
[321944752,1712645446595,-500.0,0.00020821,2]
[321944753,1712645446604,-500.0,0.00020821,2]
[321944754,1712645446613,-910.59,0.00020821,2]
[321944755,1712645446622,-519.14096932,0.00020821,2]
[321944756,1712645446631,-500.0,0.00020821,2]
[321944757,1712645446641,-504.47188906,0.00020821,2]
[321944758,1712645446652,-356.5876184,0.00020821,2]
[321944759,1712645446662,-674.55,0.00020821,2]
[321944760,1712645446671,-500.0,0.00020821,2]
[321944761,1712645446681,-500.0,0.00020821,2]
[321944762,1712645446691,-500.0,0.00020821,2]
[321944763,1712645446700,-763.27,0.00020821,2]
[321944764,1712645446710,-6726.19,0.00020821,2]
[321944765,1712645446720,-530.34358591,0.00020821,2]
[321944766,1712645446729,-2528.46,0.00020821,2]
[321944768,1712645446739,-500.0,0.00020821,2]
[321944770,1712645446749,-1537.2,0.00020821,2]
[321944772,1712645446758,-500.0,0.00020821,2]
[321944774,1712645446768,-505.15518025,0.00020821,2]
[321944776,1712645446777,-500.0,0.00020821,2]
[321944777,1712645446786,-500.0,0.00020821,2]
[321944778,1712645446795,-500.0,0.00020821,2]
[321944779,1712645446805,-500.0,0.00020821,2]
[321944780,1712645446814,-205.23285819,0.00020821,2]
[321944781,1712645446824,-500.0,0.00020821,2]
[321944782,1712645446833,-1436.86,0.00020821,2]
[321944783,1712645446842,-1466.65,0.00020821,2]
[321944784,1712645446853,-500.0,0.00020821,2]
[321944785,1712645446862,-500.0,0.00020821,2]
[321944786,1712645446871,-500.0,0.00020821,2]